[Event "Early-Titled-Tuesday-Blitz-November-28-2023"]
[Site "Chess.com"]
[Date "2023.11.28"]
[Round "6"]
[White "LeoWin2012"]
[Black "stratacticos"]
[Result "1/2-1/2"]
[WhiteElo "2261"]
[BlackElo "1743"]
[TimeControl "180+1"]
[EndTime "9:14:52 PST"]
[Termination "Game drawn - timeout vs insufficient material"]

1. b3 {[%clk 0:03:00.9]} 1... e5 {[%clk 0:02:58.2]} 2. Bb2 {[%clk 0:03:01.8]}
2... d6 {[%clk 0:02:58.2]} 3. c4 {[%clk 0:03:01.1]} 3... f5 {[%clk 0:02:56.8]}
4. d4 {[%clk 0:02:59.7]} 4... e4 {[%clk 0:02:52.8]} 5. d5 {[%clk 0:02:57.8]}
5... Nf6 {[%clk 0:02:51.4]} 6. Nh3 {[%clk 0:02:55.1]} 6... Be7 {[%clk
0:02:48.9]} 7. Nf4 {[%clk 0:02:54.3]} 7... O-O {[%clk 0:02:48]} 8. e3 {[%clk
0:02:49.4]} 8... c6 {[%clk 0:02:46.9]} 9. Nd2 {[%clk 0:02:44.6]} 9... a5 {[%clk
0:02:12.1]} 10. Nh5 {[%clk 0:02:40.5]} 10... Nxh5 {[%clk 0:02:08]} 11. Qxh5
{[%clk 0:02:41.4]} 11... Bf6 {[%clk 0:02:06.3]} 12. Bxf6 {[%clk 0:02:30.8]}
12... Qxf6 {[%clk 0:02:05.1]} 13. Qd1 {[%clk 0:02:30.9]} 13... a4 {[%clk
0:02:00.5]} 14. Be2 {[%clk 0:02:26.1]} 14... axb3 {[%clk 0:01:59.2]} 15. Nxb3
{[%clk 0:02:27]} 15... Na6 {[%clk 0:01:47.4]} 16. O-O {[%clk 0:02:24]} 16... Nc5
{[%clk 0:01:45.9]} 17. Nxc5 {[%clk 0:02:23.3]} 17... dxc5 {[%clk 0:01:45.5]} 18.
dxc6 {[%clk 0:02:18.9]} 18... Qxc6 {[%clk 0:01:41.9]} 19. Qd2 {[%clk 0:02:14.8]}
19... Be6 {[%clk 0:01:39.1]} 20. Rfd1 {[%clk 0:02:13.8]} 20... h6 {[%clk
0:01:27.4]} 21. Qd6 {[%clk 0:02:08.2]} 21... Qxd6 {[%clk 0:01:27.2]} 22. Rxd6
{[%clk 0:02:09.1]} 22... Ra6 {[%clk 0:01:15.7]} 23. Rxa6 {[%clk 0:01:35.7]}
23... bxa6 {[%clk 0:01:11.4]} 24. h4 {[%clk 0:01:35.6]} 24... Rd8 {[%clk
0:01:07.1]} 25. Bf1 {[%clk 0:01:24.2]} 25... Rd2 {[%clk 0:01:05.4]} 26. a4
{[%clk 0:01:19.7]} 26... g5 {[%clk 0:01:03.4]} 27. hxg5 {[%clk 0:01:18.5]} 27...
hxg5 {[%clk 0:01:03.5]} 28. Rb1 {[%clk 0:01:16.9]} 28... f4 {[%clk 0:01:02.4]}
29. Rb6 {[%clk 0:01:13]} 29... Kf7 {[%clk 0:01:01.4]} 30. Rxa6 {[%clk
0:01:10.9]} 30... Rd1 {[%clk 0:01:01.3]} 31. Rc6 {[%clk 0:00:47.6]} 31... Bxc4
{[%clk 0:00:58.6]} 32. Rxc5 {[%clk 0:00:45.4]} 32... Bxf1 {[%clk 0:00:57.3]} 33.
Kh2 {[%clk 0:00:45.1]} 33... fxe3 {[%clk 0:00:55.1]} 34. fxe3 {[%clk 0:00:46]}
34... Rd2 {[%clk 0:00:54.7]} 35. Rxg5 {[%clk 0:00:45.7]} 35... Ke6 {[%clk
0:00:45.3]} 36. a5 {[%clk 0:00:43.5]} 36... Ra2 {[%clk 0:00:42.2]} 37. Kg1
{[%clk 0:00:40.6]} 37... Bd3 {[%clk 0:00:39]} 38. g4 {[%clk 0:00:24]} 38... Kf6
{[%clk 0:00:38.6]} 39. Rf5+ {[%clk 0:00:23.5]} 39... Kg6 {[%clk 0:00:36.6]} 40.
Re5 {[%clk 0:00:20.3]} 40... Kf6 {[%clk 0:00:28.3]} 41. Rf5+ {[%clk 0:00:19.7]}
41... Kg6 {[%clk 0:00:28.1]} 42. Rc5 {[%clk 0:00:20.2]} 42... Kf6 {[%clk
0:00:17.1]} 43. g5+ {[%clk 0:00:18.6]} 43... Kg6 {[%clk 0:00:17]} 44. Re5 {[%clk
0:00:17.4]} 44... Kh5 {[%clk 0:00:16.2]} 45. Rf5 {[%clk 0:00:16]} 45... Kg6
{[%clk 0:00:15.7]} 46. Rd5 {[%clk 0:00:16]} 46... Kh5 {[%clk 0:00:15.7]} 47. Kh1
{[%clk 0:00:14.6]} 47... Kg6 {[%clk 0:00:11]} 48. Rc5 {[%clk 0:00:10.3]} 48...
Kh5 {[%clk 0:00:10.6]} 49. Kg1 {[%clk 0:00:07.6]} 49... Kg6 {[%clk 0:00:10.2]}
50. a6 {[%clk 0:00:05]} 50... Rxa6 {[%clk 0:00:08.3]} 51. Kf2 {[%clk 0:00:04]}
51... Ra2+ {[%clk 0:00:07.8]} 52. Kg3 {[%clk 0:00:03.9]} 52... Re2 {[%clk
0:00:08.1]} 53. Kf4 {[%clk 0:00:04]} 53... Rf2+ {[%clk 0:00:08.1]} 54. Ke5
{[%clk 0:00:03.4]} 54... Rf5+ {[%clk 0:00:07.6]} 55. Kd4 {[%clk 0:00:04.3]}
55... Rxc5 {[%clk 0:00:07.6]} 56. Kxc5 {[%clk 0:00:04.6]} 56... Kxg5 {[%clk
0:00:08.5]} 57. Kd4 {[%clk 0:00:05]} 57... Kg4 {[%clk 0:00:09.4]} 58. Kc3 {[%clk
0:00:04.9]} 58... Kf3 {[%clk 0:00:10.3]} 59. Kd2 {[%clk 0:00:05.8]} 59... Kf2
{[%clk 0:00:09.9]} 60. Kd1 {[%clk 0:00:06.5]} 60... Kxe3 {[%clk 0:00:09.1]} 61.
Ke1 {[%clk 0:00:07.4]} 61... Kf3 {[%clk 0:00:08.5]} 62. Kd2 {[%clk 0:00:06.4]}
62... e3+ {[%clk 0:00:07]} 63. Ke1 {[%clk 0:00:06.4]} 63... Bb5 {[%clk
0:00:05.2]} 64. Kd1 {[%clk 0:00:04.8]} 64... Kf2 {[%clk 0:00:06.1]} 65. Kc2
{[%clk 0:00:05]} 65... e2 {[%clk 0:00:06.7]} 66. Kc3 {[%clk 0:00:05.9]} 66...
e1=Q+ {[%clk 0:00:06.5]} 67. Kd4 {[%clk 0:00:06.8]} 67... Qe3+ {[%clk
0:00:06.1]} 68. Kd5 {[%clk 0:00:07]} 68... Qf4 {[%clk 0:00:05.8]} 69. Kc5 {[%clk
0:00:06.5]} 69... Qf5+ {[%clk 0:00:05.9]} 70. Kb4 {[%clk 0:00:06.4]} 70... Ke3
{[%clk 0:00:06.4]} 71. Kc3 {[%clk 0:00:07.3]} 71... Qc5+ {[%clk 0:00:05.6]} 72.
Kb2 {[%clk 0:00:08.2]} 72... Kd2 {[%clk 0:00:03.9]} 73. Kb3 {[%clk 0:00:08.5]}
73... Qc4+ {[%clk 0:00:03.6]} 74. Ka3 {[%clk 0:00:07.5]} 74... Qa4+ {[%clk
0:00:02.4]} 75. Kb2 {[%clk 0:00:07.6]} 1/2-1/2

[Event "Early-Titled-Tuesday-Blitz-November-28-2023"]
[Site "Chess.com"]
[Date "2023.11.28"]
[Round "6"]
[White "mbojan"]
[Black "DenisQ"]
[Result "1/2-1/2"]
[WhiteElo "2845"]
[BlackElo "2685"]
[TimeControl "180+1"]
[EndTime "9:14:58 PST"]
[Termination "Game drawn by 50-move rule"]

1. e4 {[%clk 0:03:00.9]} 1... c6 {[%clk 0:02:59.4]} 2. d4 {[%clk 0:03:00.7]}
2... d5 {[%clk 0:02:58.5]} 3. Nc3 {[%clk 0:03:01.4]} 3... dxe4 {[%clk
0:02:58.1]} 4. Nxe4 {[%clk 0:03:02.3]} 4... Bf5 {[%clk 0:02:57.7]} 5. Nc5 {[%clk
0:03:02.8]} 5... b6 {[%clk 0:02:55.2]} 6. Nb3 {[%clk 0:03:02.9]} 6... e6 {[%clk
0:02:54]} 7. Nf3 {[%clk 0:03:02.6]} 7... Nd7 {[%clk 0:02:53.7]} 8. g3 {[%clk
0:03:02.9]} 8... Bd6 {[%clk 0:02:53]} 9. Bg2 {[%clk 0:03:03.4]} 9... Ngf6 {[%clk
0:02:52.6]} 10. O-O {[%clk 0:03:04.1]} 10... O-O {[%clk 0:02:52.3]} 11. Nbd2
{[%clk 0:03:02.3]} 11... Rc8 {[%clk 0:02:39.8]} 12. Nc4 {[%clk 0:02:56.3]} 12...
Bb8 {[%clk 0:02:36.9]} 13. Re1 {[%clk 0:02:55.7]} 13... Be4 {[%clk 0:02:33.7]}
14. Ncd2 {[%clk 0:02:46]} 14... Bg6 {[%clk 0:02:31]} 15. Nc4 {[%clk 0:02:44.8]}
15... Be4 {[%clk 0:02:30.2]} 16. Bg5 {[%clk 0:02:44.5]} 16... Bd5 {[%clk
0:01:40]} 17. Nce5 {[%clk 0:02:34.9]} 17... b5 {[%clk 0:01:23.6]} 18. Nxd7
{[%clk 0:02:26.1]} 18... Qxd7 {[%clk 0:01:22.3]} 19. Bxf6 {[%clk 0:02:26.5]}
19... gxf6 {[%clk 0:01:23]} 20. Qd2 {[%clk 0:02:26.8]} 20... Kg7 {[%clk
0:01:20.8]} 21. Rad1 {[%clk 0:02:26.6]} 21... Rfd8 {[%clk 0:01:19.7]} 22. b3
{[%clk 0:02:18.7]} 22... c5 {[%clk 0:01:09.5]} 23. dxc5 {[%clk 0:02:15.8]} 23...
Rxc5 {[%clk 0:01:07.4]} 24. Nh4 {[%clk 0:02:02.1]} 24... Qc6 {[%clk 0:00:55.6]}
25. c4 {[%clk 0:00:48.1]} 25... bxc4 {[%clk 0:00:56.5]} 26. bxc4 {[%clk
0:00:48.8]} 26... Rxc4 {[%clk 0:00:52.4]} 27. Nf5+ {[%clk 0:00:44.7]} 27... exf5
{[%clk 0:00:41.8]} 28. Bxd5 {[%clk 0:00:44.5]} 28... Qc5 {[%clk 0:00:31.2]} 29.
Qd3 {[%clk 0:00:42.4]} 29... Re4 {[%clk 0:00:13.7]} 30. Rxe4 {[%clk 0:00:33.9]}
30... fxe4 {[%clk 0:00:13.8]} 31. Qxe4 {[%clk 0:00:34.7]} 31... Be5 {[%clk
0:00:13.9]} 32. Kg2 {[%clk 0:00:28.3]} 32... h6 {[%clk 0:00:13.4]} 33. h4 {[%clk
0:00:27.9]} 33... Rd6 {[%clk 0:00:11.8]} 34. Rd3 {[%clk 0:00:26]} 34... Kf8
{[%clk 0:00:11.2]} 35. Bc4 {[%clk 0:00:16]} 35... Rxd3 {[%clk 0:00:11]} 36. Bxd3
{[%clk 0:00:16.9]} 36... Qd4 {[%clk 0:00:11.4]} 37. Qa8+ {[%clk 0:00:12.5]}
37... Kg7 {[%clk 0:00:11.5]} 38. Qf3 {[%clk 0:00:10.1]} 38... Bd6 {[%clk
0:00:11.1]} 39. Qf5 {[%clk 0:00:09]} 39... Bc5 {[%clk 0:00:10.8]} 40. a4 {[%clk
0:00:08.4]} 40... Kf8 {[%clk 0:00:09.6]} 41. Qc8+ {[%clk 0:00:08.2]} 41... Kg7
{[%clk 0:00:09.3]} 42. Qf5 {[%clk 0:00:09]} 42... Kf8 {[%clk 0:00:09.6]} 43. h5
{[%clk 0:00:09.8]} 43... a5 {[%clk 0:00:09.2]} 44. Bc2 {[%clk 0:00:09.1]} 44...
Ke7 {[%clk 0:00:09.4]} 45. Bb3 {[%clk 0:00:09.2]} 45... Kf8 {[%clk 0:00:08.8]}
46. Qf3 {[%clk 0:00:08]} 46... Kg7 {[%clk 0:00:08]} 47. Qf5 {[%clk 0:00:07.8]}
47... Kf8 {[%clk 0:00:08]} 48. Bc2 {[%clk 0:00:06.8]} 48... Ke7 {[%clk
0:00:07.8]} 49. Qf3 {[%clk 0:00:06.9]} 49... Kf8 {[%clk 0:00:08]} 50. Qe2 {[%clk
0:00:07.5]} 50... Kg7 {[%clk 0:00:07.9]} 51. Bb3 {[%clk 0:00:06.8]} 51... Kf8
{[%clk 0:00:07.7]} 52. Qa2 {[%clk 0:00:05.9]} 52... Kg7 {[%clk 0:00:06]} 53.
Bxf7 {[%clk 0:00:04.7]} 53... Qe4+ {[%clk 0:00:03.9]} 54. Kh2 {[%clk 0:00:05.3]}
54... Qf3 {[%clk 0:00:03.7]} 55. Bg6 {[%clk 0:00:03.8]} 55... Qxf2+ {[%clk
0:00:03.7]} 56. Qxf2 {[%clk 0:00:04.4]} 56... Bxf2 {[%clk 0:00:04.4]} 57. Kg2
{[%clk 0:00:05.3]} 57... Bc5 {[%clk 0:00:04.8]} 58. Kf3 {[%clk 0:00:06.1]} 58...
Bb4 {[%clk 0:00:05.7]} 59. Ke4 {[%clk 0:00:06.7]} 59... Bc3 {[%clk 0:00:06.4]}
60. g4 {[%clk 0:00:07.4]} 60... Bb4 {[%clk 0:00:07.3]} 61. Kd5 {[%clk
0:00:08.1]} 61... Ba3 {[%clk 0:00:08]} 62. Kc6 {[%clk 0:00:08.9]} 62... Bb4
{[%clk 0:00:08.6]} 63. Kb5 {[%clk 0:00:09.8]} 63... Bc3 {[%clk 0:00:09]} 64. Bf5
{[%clk 0:00:10.7]} 64... Bb4 {[%clk 0:00:09.6]} 65. Kc4 {[%clk 0:00:11.6]} 65...
Bd2 {[%clk 0:00:09.7]} 66. Kd5 {[%clk 0:00:12.5]} 66... Bb4 {[%clk 0:00:10.3]}
67. Ke4 {[%clk 0:00:13.4]} 67... Bc3 {[%clk 0:00:10.8]} 68. Kf3 {[%clk
0:00:14.3]} 68... Bb4 {[%clk 0:00:11.3]} 69. Ke2 {[%clk 0:00:15.2]} 69... Bc3
{[%clk 0:00:11.7]} 70. Kd3 {[%clk 0:00:16.1]} 70... Bb4 {[%clk 0:00:12.1]} 71.
Kc4 {[%clk 0:00:17]} 71... Kf8 {[%clk 0:00:11.9]} 72. Kb5 {[%clk 0:00:17.9]}
72... Kg7 {[%clk 0:00:12.5]} 73. Ka6 {[%clk 0:00:18.8]} 73... Kf8 {[%clk
0:00:12.7]} 74. Ka7 {[%clk 0:00:19.7]} 74... Kg7 {[%clk 0:00:13.1]} 75. Ka8
{[%clk 0:00:20.6]} 75... Kf8 {[%clk 0:00:13.5]} 76. Kb8 {[%clk 0:00:21.5]} 76...
Kg7 {[%clk 0:00:13.9]} 77. Kb7 {[%clk 0:00:22.4]} 77... Kf8 {[%clk 0:00:14.2]}
78. Kc7 {[%clk 0:00:23.3]} 78... Ke7 {[%clk 0:00:14.4]} 79. Kc8 {[%clk
0:00:24.2]} 79... Kd6 {[%clk 0:00:14.5]} 80. Kd8 {[%clk 0:00:25.1]} 80... Ke5
{[%clk 0:00:14.6]} 81. Ke8 {[%clk 0:00:25.1]} 81... Kf4 {[%clk 0:00:14.9]} 82.
Kf7 {[%clk 0:00:25.9]} 82... Kg5 {[%clk 0:00:15.2]} 83. Ke6 {[%clk 0:00:26.8]}
83... Bc3 {[%clk 0:00:15.6]} 84. Kd5 {[%clk 0:00:27.4]} 84... Bb4 {[%clk
0:00:16.3]} 85. Ke4 {[%clk 0:00:28.3]} 85... Bc3 {[%clk 0:00:16.6]} 86. Kd3
{[%clk 0:00:29.2]} 86... Bb4 {[%clk 0:00:17.1]} 87. Kc4 {[%clk 0:00:30.1]} 87...
Ba3 {[%clk 0:00:17.4]} 88. Kc3 {[%clk 0:00:29.8]} 88... Bb4+ {[%clk 0:00:17.6]}
89. Kb3 {[%clk 0:00:30.7]} 89... Kf4 {[%clk 0:00:17.9]} 90. Kc2 {[%clk
0:00:31.6]} 90... Kg5 {[%clk 0:00:18.7]} 91. Kd3 {[%clk 0:00:32.3]} 91... Kf4
{[%clk 0:00:19.6]} 92. Kd4 {[%clk 0:00:32.9]} 92... Kg5 {[%clk 0:00:20.2]} 93.
Kd5 {[%clk 0:00:33.8]} 93... Kf4 {[%clk 0:00:20.6]} 94. Kc6 {[%clk 0:00:34.7]}
94... Kg5 {[%clk 0:00:21.3]} 95. Kb7 {[%clk 0:00:35.6]} 95... Kf4 {[%clk
0:00:21.9]} 96. Kc8 {[%clk 0:00:36.5]} 96... Kg5 {[%clk 0:00:22.5]} 97. Kd7
{[%clk 0:00:37.4]} 97... Kf4 {[%clk 0:00:23]} 98. Ke6 {[%clk 0:00:38.3]} 98...
Kg5 {[%clk 0:00:23.6]} 99. Kf7 {[%clk 0:00:39.2]} 99... Ba3 {[%clk 0:00:24]}
100. Kg7 {[%clk 0:00:39.6]} 100... Bb4 {[%clk 0:00:24.6]} 101. Kg8 {[%clk
0:00:40.4]} 101... Ba3 {[%clk 0:00:25.3]} 102. Kf7 {[%clk 0:00:41.3]} 102... Bb4
{[%clk 0:00:25.9]} 103. Ke8 {[%clk 0:00:42.2]} 103... Ba3 {[%clk 0:00:26.5]}
104. Kd8 {[%clk 0:00:43.1]} 104... Bb4 {[%clk 0:00:27]} 105. Kc7 {[%clk
0:00:44]} 105... Ba3 {[%clk 0:00:27.5]} 106. Kb6 {[%clk 0:00:44.9]} 106... Bb4
{[%clk 0:00:28.1]} 107. Kb5 {[%clk 0:00:45.8]} 107... Kf4 {[%clk 0:00:28.4]}
108. Kc4 {[%clk 0:00:46.6]} 108... Kg5 {[%clk 0:00:29]} 109. Kd5 {[%clk
0:00:47.5]} 109... Kf4 {[%clk 0:00:29.5]} 110. Kd4 {[%clk 0:00:48.4]} 1/2-1/2

[Event "Early-Titled-Tuesday-Blitz-November-28-2023"]
[Site "Chess.com"]
[Date "2023.11.28"]
[Round "6"]
[White "Aygehovit1992"]
[Black "liczner"]
[Result "0-1"]
[WhiteElo "2716"]
[BlackElo "2893"]
[TimeControl "180+1"]
[EndTime "9:15:02 PST"]
[Termination "liczner won by resignation"]

1. e4 {[%clk 0:02:49]} 1... c6 {[%clk 0:02:59.8]} 2. d4 {[%clk 0:02:48.3]} 2...
d5 {[%clk 0:03:00.7]} 3. e5 {[%clk 0:02:49.1]} 3... Bf5 {[%clk 0:03:00.4]} 4.
Nf3 {[%clk 0:02:50]} 4... e6 {[%clk 0:03:00.9]} 5. Be2 {[%clk 0:02:50.7]} 5...
Ne7 {[%clk 0:03:01.5]} 6. Nbd2 {[%clk 0:02:50.3]} 6... h6 {[%clk 0:02:57.3]} 7.
Nb3 {[%clk 0:02:50.5]} 7... Bh7 {[%clk 0:02:57.2]} 8. O-O {[%clk 0:02:50.4]}
8... Nd7 {[%clk 0:02:57.2]} 9. a4 {[%clk 0:02:50.4]} 9... Nf5 {[%clk 0:02:48.6]}
10. a5 {[%clk 0:02:49.2]} 10... a6 {[%clk 0:02:48.9]} 11. c4 {[%clk 0:02:46.5]}
11... dxc4 {[%clk 0:02:43.8]} 12. Bxc4 {[%clk 0:02:47.4]} 12... Be7 {[%clk
0:02:43.7]} 13. Bd2 {[%clk 0:02:38.8]} 13... O-O {[%clk 0:02:43.1]} 14. Rc1
{[%clk 0:02:39.4]} 14... Rc8 {[%clk 0:02:19.8]} 15. Qe2 {[%clk 0:02:33.2]} 15...
Kh8 {[%clk 0:02:12.9]} 16. Rfd1 {[%clk 0:02:16.9]} 16... Re8 {[%clk 0:02:01.4]}
17. Bd3 {[%clk 0:02:13.8]} 17... Nf8 {[%clk 0:01:59.4]} 18. Be4 {[%clk
0:01:47.5]} 18... Rc7 {[%clk 0:01:58.3]} 19. Nc5 {[%clk 0:01:40.9]} 19... Nd7
{[%clk 0:01:48.8]} 20. b4 {[%clk 0:01:28.3]} 20... Nxc5 {[%clk 0:01:36.7]} 21.
dxc5 {[%clk 0:01:28.6]} 21... Rd7 {[%clk 0:01:33.4]} 22. Bf4 {[%clk 0:01:28.3]}
22... Nd4 {[%clk 0:01:23.5]} 23. Nxd4 {[%clk 0:01:27.6]} 23... Rxd4 {[%clk
0:01:24.4]} 24. Bxh7 {[%clk 0:01:26.9]} 24... Kxh7 {[%clk 0:01:25.3]} 25. Be3
{[%clk 0:01:22.3]} 25... Rd5 {[%clk 0:01:24.6]} 26. f4 {[%clk 0:01:13.7]} 26...
Qd7 {[%clk 0:01:22.3]} 27. Rxd5 {[%clk 0:01:07]} 27... exd5 {[%clk 0:01:17.1]}
28. Qd3+ {[%clk 0:01:05.8]} 28... g6 {[%clk 0:01:14.9]} 29. Rf1 {[%clk
0:01:02.4]} 29... f5 {[%clk 0:00:54]} 30. Bd4 {[%clk 0:00:54.4]} 30... Qe6
{[%clk 0:00:52.8]} 31. h3 {[%clk 0:00:53.6]} 31... Rf8 {[%clk 0:00:51.4]} 32.
Kh2 {[%clk 0:00:48]} 32... Kg7 {[%clk 0:00:51.7]} 33. Rg1 {[%clk 0:00:25.3]}
33... Kf7 {[%clk 0:00:50.1]} 34. g4 {[%clk 0:00:25.2]} 34... Ke8 {[%clk
0:00:49.4]} 35. gxf5 {[%clk 0:00:21.4]} 35... Rxf5 {[%clk 0:00:48.5]} 36. Qg3
{[%clk 0:00:21.5]} 36... g5 {[%clk 0:00:44.5]} 37. fxg5 {[%clk 0:00:20.5]} 37...
Bxg5 {[%clk 0:00:45.4]} 38. Qg4 {[%clk 0:00:17.2]} 38... Kd7 {[%clk 0:00:42.3]}
39. h4 {[%clk 0:00:15.8]} 39... Be7 {[%clk 0:00:29.5]} 40. Rg3 {[%clk
0:00:05.9]} 40... Kc7 {[%clk 0:00:24.6]} 41. Kh3 {[%clk 0:00:02.3]} 41... h5
{[%clk 0:00:21.4]} 42. Qg8 {[%clk 0:00:02.6]} 42... Rf7+ {[%clk 0:00:17.7]} 43.
Kg2 {[%clk 0:00:03]} 43... Qf5 {[%clk 0:00:12]} 44. Kh2 {[%clk 0:00:03.6]} 44...
Bxh4 {[%clk 0:00:11.3]} 45. Rg7 {[%clk 0:00:01.8]} 45... Rxg7 {[%clk 0:00:07.1]}
46. Qxg7+ {[%clk 0:00:02.7]} 46... Qd7 {[%clk 0:00:07.6]} 47. e6 {[%clk
0:00:02.4]} 47... Qxg7 {[%clk 0:00:06.7]} 48. Bxg7 {[%clk 0:00:03.3]} 48... Kd8
{[%clk 0:00:06]} 49. Kh3 {[%clk 0:00:04.2]} 49... Be1 {[%clk 0:00:04.6]} 50.
Bf6+ {[%clk 0:00:04.1]} 50... Ke8 {[%clk 0:00:05.2]} 51. e7 {[%clk 0:00:02.7]}
51... Bxb4 {[%clk 0:00:04.8]} 52. Kh4 {[%clk 0:00:02.8]} 52... Bxc5 {[%clk
0:00:04.3]} 53. Kxh5 {[%clk 0:00:03.7]} 53... Bxe7 {[%clk 0:00:05.1]} 54. Be5
{[%clk 0:00:04.3]} 54... Kd7 {[%clk 0:00:05.4]} 55. Kg4 {[%clk 0:00:04.3]} 55...
Ke6 {[%clk 0:00:06.1]} 56. Bc7 {[%clk 0:00:04.6]} 56... Bd6 {[%clk 0:00:04.7]}
57. Bb6 {[%clk 0:00:04.5]} 57... Ke5 {[%clk 0:00:03.1]} 58. Kf3 {[%clk
0:00:05.4]} 58... d4 {[%clk 0:00:03.5]} 59. Ke2 {[%clk 0:00:05.3]} 59... Kd5
{[%clk 0:00:04.2]} 60. Kd3 {[%clk 0:00:05.6]} 60... c5 {[%clk 0:00:05.1]} 61.
Kc2 {[%clk 0:00:05.9]} 61... c4 {[%clk 0:00:05.7]} 62. Kd2 {[%clk 0:00:06.5]}
62... Bc5 {[%clk 0:00:05.6]} 63. Bd8 {[%clk 0:00:06.3]} 63... Kc6 {[%clk
0:00:06.3]} 64. Kc2 {[%clk 0:00:06.2]} 64... Kb5 {[%clk 0:00:07.2]} 65. Kb2
{[%clk 0:00:06.4]} 65... d3 {[%clk 0:00:07.5]} 66. Kc3 {[%clk 0:00:06.6]} 66...
Bb4+ {[%clk 0:00:08.4]} 67. Kb2 {[%clk 0:00:06.3]} 67... Bxa5 {[%clk 0:00:08.7]}
68. Bg5 {[%clk 0:00:06.7]} 68... Bb6 {[%clk 0:00:08.7]} 69. Kc3 {[%clk 0:00:07]}
69... Bc5 {[%clk 0:00:08.8]} 70. Bc1 {[%clk 0:00:06.9]} 70... a5 {[%clk
0:00:09.2]} 71. Kb2 {[%clk 0:00:07]} 71... Bd4+ {[%clk 0:00:09.2]} 72. Ka3
{[%clk 0:00:07.2]} 72... Ka6 {[%clk 0:00:09.1]} 73. Ka4 {[%clk 0:00:07.1]} 73...
b5+ {[%clk 0:00:09.2]} 74. Ka3 {[%clk 0:00:07.7]} 74... Kb6 {[%clk 0:00:08.8]}
75. Bh6 {[%clk 0:00:07.3]} 75... Kc6 {[%clk 0:00:09.1]} 76. Bg5 {[%clk
0:00:06.9]} 76... c3 {[%clk 0:00:09.3]} 77. Kb3 {[%clk 0:00:07.2]} 77... a4+
{[%clk 0:00:09.8]} 78. Kb4 {[%clk 0:00:07.1]} 78... d2 {[%clk 0:00:10.4]} 0-1